[Event "Titled Tuesday Blitz January 10 Early 2023"]
[White "Samunenkov, Ihor"]
[Black "Garakov, Mikhael"]
[WhiteFideId "14187086"]
[BlackFideId "4169034"]
[WhiteElo "2501"]
[BlackElo "2447"]
[Result "1-0"]
[Round "10"]
[TimeControl "180+2"]
[Date "2023.01.10"]
[WhiteClock "0:00:12"]
[BlackClock "0:00:04"]

1. d4 {[%clk 0:03:00]}  Nf6 {[%clk 0:02:16]} 2. Nf3 {[%clk 0:02:59]}  c5 {[%clk 0:02:11]} 3. d5 {[%clk 0:02:59]}  g6 {[%clk 0:02:11]} 4. Nc3 {[%clk 0:02:53]}  Bg7 {[%clk 0:02:10]} 5. e4 {[%clk 0:02:54]}  d6 {[%clk 0:02:10]} 6. Bc4 {[%clk 0:02:53]}  O-O {[%clk 0:02:09]} 7. O-O {[%clk 0:02:54]}  Bg4 {[%clk 0:02:05]} 8. h3 {[%clk 0:02:54]}  Bxf3 {[%clk 0:02:04]} 9. Qxf3 {[%clk 0:02:54]}  Nfd7 {[%clk 0:01:47]} 10. Be2 {[%clk 0:02:51]}  Na6 {[%clk 0:01:34]} 11. Bf4 {[%clk 0:02:28]}  Rb8 {[%clk 0:01:22]} 12. Qe3 {[%clk 0:02:11]}  Nc7 {[%clk 0:01:02]} 13. a4 {[%clk 0:02:09]}  a6 {[%clk 0:00:49]} 14. a5 {[%clk 0:02:08]}  b5 {[%clk 0:00:39]} 15. axb6 {[%clk 0:02:08]}  Nxb6 {[%clk 0:00:38]} 16. b3 {[%clk 0:02:01]}  Nb5 {[%clk 0:00:37]} 17. Nxb5 {[%clk 0:01:32]}  axb5 {[%clk 0:00:27]} 18. Ra2 {[%clk 0:01:24]}  b4 {[%clk 0:00:23]} 19. Bh6 {[%clk 0:00:59]}  Bxh6 {[%clk 0:00:20]} 20. Qxh6 {[%clk 0:01:00]}  Ra8 {[%clk 0:00:20]} 21. Rfa1 {[%clk 0:00:59]}  Qc7 {[%clk 0:00:20]} 22. Bb5 {[%clk 0:00:50]}  Rxa2 {[%clk 0:00:19]} 23. Rxa2 {[%clk 0:00:51]}  Ra8 {[%clk 0:00:18]} 24. Rxa8+ {[%clk 0:00:51]}  Nxa8 {[%clk 0:00:18]} 25. Bc6 {[%clk 0:00:47]}  Nb6 {[%clk 0:00:17]} 26. Qe3 {[%clk 0:00:43]}  Qa7 {[%clk 0:00:17]} 27. g3 {[%clk 0:00:37]}  Qa1+ {[%clk 0:00:17]} 28. Kg2 {[%clk 0:00:38]}  Kg7 {[%clk 0:00:17]} 29. Qd3 {[%clk 0:00:37]}  Qa5 {[%clk 0:00:12]} 30. h4 {[%clk 0:00:29]}  Nc8 {[%clk 0:00:12]} 31. Qe2 {[%clk 0:00:27]}  Na7 {[%clk 0:00:11]} 32. Ba4 {[%clk 0:00:27]}  Qc7 {[%clk 0:00:08]} 33. Qa6 {[%clk 0:00:25]}  Nc8 {[%clk 0:00:08]} 34. Bc6 {[%clk 0:00:24]}  Nb6 {[%clk 0:00:08]} 35. Qa5 {[%clk 0:00:22]}  h5 {[%clk 0:00:07]} 36. Qa6 {[%clk 0:00:21]}  e5 {[%clk 0:00:08]} 37. Qa1 {[%clk 0:00:14]}  Nc8 {[%clk 0:00:07]} 38. Qa8 {[%clk 0:00:12]}  Ne7 {[%clk 0:00:07]} 39. Qe8 {[%clk 0:00:11]}  f5 {[%clk 0:00:06]} 40. Bd7 {[%clk 0:00:11]}  fxe4 {[%clk 0:00:05]} 41. Qxe7+ {[%clk 0:00:11]}  Kh6 {[%clk 0:00:05]} 42. Qf8+ {[%clk 0:00:12]}  Kh7 {[%clk 0:00:04]} 43. Be6 {[%clk 0:00:12]} 1-0


[Site "https://www.chess.com"]

[Event "Titled Tuesday Blitz January 10 Early 2023"]
[White "Jovic, Stanoje"]
[Black "Halkias, Stelios"]
[WhiteFideId "905020"]
[BlackFideId "4201809"]
[WhiteElo "2075"]
[BlackElo "2511"]
[Result "0-1"]
[Round "10"]
[TimeControl "180+2"]
[Date "2023.01.10"]
[WhiteClock "0:00:03"]
[BlackClock "0:00:16"]

1. c4 {[%clk 0:03:00]}  Nf6 {[%clk 0:02:59]} 2. g3 {[%clk 0:03:01]}  e6 {[%clk 0:02:58]} 3. Bg2 {[%clk 0:03:01]}  d5 {[%clk 0:02:59]} 4. Nf3 {[%clk 0:03:01]}  Be7 {[%clk 0:02:59]} 5. O-O {[%clk 0:03:01]}  O-O {[%clk 0:02:59]} 6. d4 {[%clk 0:03:01]}  c6 {[%clk 0:02:59]} 7. b3 {[%clk 0:03:00]}  b6 {[%clk 0:02:57]} 8. Qc2 {[%clk 0:02:59]}  c5 {[%clk 0:02:56]} 9. Ne5 {[%clk 0:02:58]}  Bb7 {[%clk 0:02:54]} 10. dxc5 {[%clk 0:02:57]}  bxc5 {[%clk 0:02:54]} 11. cxd5 {[%clk 0:02:49]}  exd5 {[%clk 0:02:52]} 12. Rd1 {[%clk 0:02:45]}  Qc7 {[%clk 0:02:45]} 13. Bf4 {[%clk 0:02:36]}  g5 {[%clk 0:02:39]} 14. Ng6 {[%clk 0:02:11]}  gxf4 {[%clk 0:02:37]} 15. Nxf8 {[%clk 0:02:11]}  Bxf8 {[%clk 0:02:34]} 16. Qf5 {[%clk 0:02:06]}  Nbd7 {[%clk 0:02:26]} 17. Nc3 {[%clk 0:02:03]}  Re8 {[%clk 0:02:14]} 18. Nxd5 {[%clk 0:01:54]}  Bxd5 {[%clk 0:02:03]} 19. Bxd5 {[%clk 0:01:49]}  fxg3 {[%clk 0:01:59]} 20. hxg3 {[%clk 0:01:45]}  Rxe2 {[%clk 0:01:56]} 21. Bc4 {[%clk 0:01:37]}  Re7 {[%clk 0:01:41]} 22. Re1 {[%clk 0:01:24]}  Qd8 {[%clk 0:01:27]} 23. g4 {[%clk 0:01:15]}  Nb6 {[%clk 0:01:03]} 24. Qg5+ {[%clk 0:00:37]}  Bg7 {[%clk 0:00:52]} 25. Qxc5 {[%clk 0:00:37]}  Ne4 {[%clk 0:00:39]} 26. Qf5 {[%clk 0:00:13]}  Nxc4 {[%clk 0:00:33]} 27. bxc4 {[%clk 0:00:08]}  Bxa1 {[%clk 0:00:31]} 28. Rxe4 {[%clk 0:00:08]}  Rxe4 {[%clk 0:00:29]} 29. Qxe4 {[%clk 0:00:08]}  Kg7 {[%clk 0:00:27]} 30. c5 {[%clk 0:00:08]}  Qd4 {[%clk 0:00:18]} 31. Qc2 {[%clk 0:00:07]}  Qxg4+ {[%clk 0:00:17]} 32. Kf1 {[%clk 0:00:07]}  Be5 {[%clk 0:00:17]} 33. c6 {[%clk 0:00:05]}  Qf4 {[%clk 0:00:17]} 34. Qb3 {[%clk 0:00:03]}  h5 {[%clk 0:00:16]} 0-1


[Site "https://www.chess.com"]

[Event "Titled Tuesday Blitz January 10 Early 2023"]
[White "Manelyuk, Daniil"]
[Black "Molina, Roberto Junio Brito"]
[WhiteFideId "44173920"]
[BlackFideId "2109450"]
[WhiteElo "2302"]
[BlackElo "2403"]
[Result "0-1"]
[Round "10"]
[TimeControl "180+2"]
[Date "2023.01.10"]
[WhiteClock "0:01:56"]
[BlackClock "0:02:01"]

1. e4 {[%clk 0:03:00]}  c6 {[%clk 0:02:59]} 2. d4 {[%clk 0:03:00]}  d5 {[%clk 0:02:59]} 3. e5 {[%clk 0:03:01]}  Bf5 {[%clk 0:02:59]} 4. h4 {[%clk 0:03:01]}  Qb6 {[%clk 0:02:58]} 5. g4 {[%clk 0:02:56]}  Bd7 {[%clk 0:02:58]} 6. f4 {[%clk 0:02:40]}  c5 {[%clk 0:02:54]} 7. Bh3 {[%clk 0:02:40]}  cxd4 {[%clk 0:02:51]} 8. Nf3 {[%clk 0:02:40]}  Nc6 {[%clk 0:02:50]} 9. Nbd2 {[%clk 0:02:40]}  h5 {[%clk 0:02:49]} 10. gxh5 {[%clk 0:02:21]}  Bxh3 {[%clk 0:02:48]} 11. Rxh3 {[%clk 0:02:22]}  e6 {[%clk 0:02:42]} 12. Nb3 {[%clk 0:02:18]}  Bb4+ {[%clk 0:02:39]} 13. Kf2 {[%clk 0:02:15]}  Nh6 {[%clk 0:02:35]} 14. Nfxd4 {[%clk 0:02:09]}  Nf5 {[%clk 0:02:33]} 15. c3 {[%clk 0:02:08]}  Be7 {[%clk 0:02:31]} 16. Kf3 {[%clk 0:01:56]}  Rxh5 {[%clk 0:02:19]} 17. Nxf5 {[%clk 0:01:49]}  Rxf5 {[%clk 0:02:17]} 18. Kg2 {[%clk 0:01:46]}  O-O-O {[%clk 0:02:11]} 19. Be3 {[%clk 0:01:46]}  Qa6 {[%clk 0:02:01]} 20. Qf1 {[%clk 0:01:39]}  Qa4 {[%clk 0:01:52]} 21. Qd3 {[%clk 0:01:22]}  Rh8 {[%clk 0:01:43]} 22. Rah1 {[%clk 0:01:20]}  Qxa2 {[%clk 0:01:38]} 23. Qc2 {[%clk 0:01:18]}  Qa4 {[%clk 0:01:35]} 24. Nd4 {[%clk 0:01:18]}  Qxc2+ {[%clk 0:01:33]} 25. Nxc2 {[%clk 0:01:19]}  g6 {[%clk 0:01:29]} 26. Ne1 {[%clk 0:01:18]}  Rfh5 {[%clk 0:01:26]} 27. Nf3 {[%clk 0:01:18]}  a6 {[%clk 0:01:25]} 28. b3 {[%clk 0:01:17]}  b5 {[%clk 0:01:22]} 29. c4 {[%clk 0:01:13]}  dxc4 {[%clk 0:01:21]} 30. bxc4 {[%clk 0:01:14]}  b4 {[%clk 0:01:21]} 31. Kg3 {[%clk 0:01:06]}  a5 {[%clk 0:01:15]} 32. Ra1 {[%clk 0:01:05]}  Kb7 {[%clk 0:01:13]} 33. Rh2 {[%clk 0:01:04]}  Rd8 {[%clk 0:01:10]} 34. Nd2 {[%clk 0:00:56]}  Rd3 {[%clk 0:01:07]} 35. Kf3 {[%clk 0:00:52]}  Bc5 {[%clk 0:01:03]} 36. Re1 {[%clk 0:00:49]}  Bxe3 {[%clk 0:00:26]} 37. Rxe3 {[%clk 0:00:50]}  Rxe3+ {[%clk 0:00:26]} 38. Kxe3 {[%clk 0:00:51]}  Kb6 {[%clk 0:00:26]} 39. Ne4 {[%clk 0:00:52]}  a4 {[%clk 0:00:26]} 40. c5+ {[%clk 0:00:47]}  Kb5 {[%clk 0:00:26]} 41. Nd6+ {[%clk 0:00:29]}  Kxc5 {[%clk 0:00:24]} 42. Rc2+ {[%clk 0:00:28]}  Kb6 {[%clk 0:00:24]} 43. Nc8+ {[%clk 0:00:27]}  Kb7 {[%clk 0:00:25]} 44. Nd6+ {[%clk 0:00:27]}  Kc7 {[%clk 0:00:25]} 45. Ne8+ {[%clk 0:00:20]}  Kb6 {[%clk 0:00:25]} 46. Nd6 {[%clk 0:00:18]}  Rxh4 {[%clk 0:00:23]} 47. Nc8+ {[%clk 0:00:16]}  Kb7 {[%clk 0:00:21]} 48. Nd6+ {[%clk 0:00:17]}  Kc7 {[%clk 0:00:21]} 49. Nxf7 {[%clk 0:00:17]}  Rh3+ {[%clk 0:00:18]} 50. Ke4 {[%clk 0:00:17]}  b3 {[%clk 0:00:18]} 51. Rd2 {[%clk 0:00:08]}  a3 {[%clk 0:00:18]} 52. Ng5 {[%clk 0:00:08]}  Rc3 {[%clk 0:00:16]} 53. Nxe6+ {[%clk 0:00:09]}  Kb6 {[%clk 0:00:16]} 54. Nd4 {[%clk 0:00:05]}  Nxd4 {[%clk 0:00:14]} 55. Kxd4 {[%clk 0:00:04]}  Rc8 {[%clk 0:00:12]} 56. Rd3 {[%clk 0:00:03]}  Rd8+ {[%clk 0:00:12]} 57. Kc3 {[%clk 0:00:03]}  Rxd3+ {[%clk 0:00:13]} 58. Kxd3 {[%clk 0:00:04]}  a2 {[%clk 0:00:13]} 59. e6 {[%clk 0:00:04]}  a1=Q {[%clk 0:00:13]} 60. e7 {[%clk 0:00:05]}  Qh8 {[%clk 0:00:13]} 61. Kc4 {[%clk 0:00:06]}  Qe8 {[%clk 0:00:13]} 62. Kxb3 {[%clk 0:00:07]}  Qxe7 {[%clk 0:00:13]} 63. Kc3 {[%clk 0:00:08]}  Qe4 {[%clk 0:00:13]} 64. Kb3 {[%clk 0:00:08]}  Qxf4 {[%clk 0:00:13]} 65. Ka3 {[%clk 0:00:08]}  Kc6 {[%clk 0:00:14]} 66. Ka2 {[%clk 0:00:09]}  Kd6 {[%clk 0:00:15]} 67. Kb2 {[%clk 0:00:10]}  Ke5 {[%clk 0:00:16]} 68. Kb1 {[%clk 0:00:11]}  Ke6 {[%clk 0:00:17]} 69. Ka1 {[%clk 0:00:11]}  Kf5 {[%clk 0:00:18]} 70. Kb1 {[%clk 0:00:12]}  Kf6 {[%clk 0:00:19]} 71. Ka1 {[%clk 0:00:13]}  Kg5 {[%clk 0:00:20]} 72. Kb1 {[%clk 0:00:14]}  Kh6 {[%clk 0:00:21]} 73. Ka1 {[%clk 0:00:15]}  Kh7 {[%clk 0:00:21]} 74. Kb1 {[%clk 0:00:16]}  Kg7 {[%clk 0:00:22]} 75. Ka1 {[%clk 0:00:17]}  Kg8 {[%clk 0:00:23]} 76. Kb1 {[%clk 0:00:18]}  Kf7 {[%clk 0:00:24]} 77. Ka1 {[%clk 0:00:19]}  Kf8 {[%clk 0:00:25]} 78. Kb1 {[%clk 0:00:20]}  Ke7 {[%clk 0:00:26]} 79. Ka1 {[%clk 0:00:20]}  Ke8 {[%clk 0:00:27]} 80. Kb1 {[%clk 0:00:21]}  Kd7 {[%clk 0:00:28]} 81. Ka1 {[%clk 0:00:22]}  Kd8 {[%clk 0:00:29]} 82. Kb1 {[%clk 0:00:23]}  Kc7 {[%clk 0:00:30]} 83. Ka1 {[%clk 0:00:24]}  Kc8 {[%clk 0:00:30]} 84. Kb1 {[%clk 0:00:25]}  Kb7 {[%clk 0:00:31]} 85. Ka1 {[%clk 0:00:26]}  Kb8 {[%clk 0:00:32]} 86. Kb1 {[%clk 0:00:27]}  Qg3 {[%clk 0:00:33]} 87. Ka1 {[%clk 0:00:28]}  Ka7 {[%clk 0:00:34]} 88. Kb1 {[%clk 0:00:29]}  Ka6 {[%clk 0:00:35]} 89. Ka1 {[%clk 0:00:29]}  Kb6 {[%clk 0:00:36]} 90. Kb1 {[%clk 0:00:30]}  Kc5 {[%clk 0:00:37]} 91. Ka1 {[%clk 0:00:31]}  Qh2 {[%clk 0:00:37]} 92. Kb1 {[%clk 0:00:32]}  Qe2 {[%clk 0:00:38]} 93. Ka1 {[%clk 0:00:33]}  Qd2 {[%clk 0:00:38]} 94. Kb1 {[%clk 0:00:34]}  Kd4 {[%clk 0:00:39]} 95. Ka1 {[%clk 0:00:35]}  g5 {[%clk 0:00:40]} 96. Kb1 {[%clk 0:00:36]}  Ke5 {[%clk 0:00:40]} 97. Ka1 {[%clk 0:00:37]}  Kf5 {[%clk 0:00:41]} 98. Kb1 {[%clk 0:00:38]}  Kf6 {[%clk 0:00:42]} 99. Ka1 {[%clk 0:00:38]}  Kg6 {[%clk 0:00:43]} 100. Kb1 {[%clk 0:00:39]}  Kg7 {[%clk 0:00:44]} 101. Ka1 {[%clk 0:00:40]}  Kf7 {[%clk 0:00:45]} 102. Kb1 {[%clk 0:00:41]}  Kf8 {[%clk 0:00:46]} 103. Ka1 {[%clk 0:00:42]}  Ke7 {[%clk 0:00:47]} 104. Kb1 {[%clk 0:00:43]}  Ke8 {[%clk 0:00:48]} 105. Ka1 {[%clk 0:00:44]}  Kd7 {[%clk 0:00:48]} 106. Kb1 {[%clk 0:00:45]}  Kd8 {[%clk 0:00:49]} 107. Ka1 {[%clk 0:00:46]}  Kc7 {[%clk 0:00:50]} 108. Kb1 {[%clk 0:00:46]}  Kc8 {[%clk 0:00:51]} 109. Ka1 {[%clk 0:00:47]}  Kb7 {[%clk 0:00:52]} 110. Kb1 {[%clk 0:00:48]}  Kb8 {[%clk 0:00:53]} 111. Ka1 {[%clk 0:00:48]}  Ka7 {[%clk 0:00:54]} 112. Kb1 {[%clk 0:00:49]}  Ka8 {[%clk 0:00:55]} 113. Ka1 {[%clk 0:00:50]}  g4 {[%clk 0:00:56]} 114. Kb1 {[%clk 0:00:51]}  Kb8 {[%clk 0:00:57]} 115. Ka1 {[%clk 0:00:52]}  Kb7 {[%clk 0:00:57]} 116. Kb1 {[%clk 0:00:53]}  Kc8 {[%clk 0:00:58]} 117. Ka1 {[%clk 0:00:54]}  Kc7 {[%clk 0:00:59]} 118. Kb1 {[%clk 0:00:55]}  Kd8 {[%clk 0:01:00]} 119. Ka1 {[%clk 0:00:56]}  Kd7 {[%clk 0:01:01]} 120. Kb1 {[%clk 0:00:57]}  Ke8 {[%clk 0:01:02]} 121. Ka1 {[%clk 0:00:57]}  Ke7 {[%clk 0:01:03]} 122. Kb1 {[%clk 0:00:58]}  Kf8 {[%clk 0:01:04]} 123. Ka1 {[%clk 0:00:59]}  Kf7 {[%clk 0:01:05]} 124. Kb1 {[%clk 0:01:00]}  Kg8 {[%clk 0:01:06]} 125. Ka1 {[%clk 0:01:01]}  Kg7 {[%clk 0:01:06]} 126. Kb1 {[%clk 0:01:02]}  Kh8 {[%clk 0:01:07]} 127. Ka1 {[%clk 0:01:03]}  Kh7 {[%clk 0:01:08]} 128. Kb1 {[%clk 0:01:04]}  Kh6 {[%clk 0:01:09]} 129. Ka1 {[%clk 0:01:05]}  Kh5 {[%clk 0:01:10]} 130. Kb1 {[%clk 0:01:06]}  Kg6 {[%clk 0:01:11]} 131. Ka1 {[%clk 0:01:06]}  Kg5 {[%clk 0:01:12]} 132. Kb1 {[%clk 0:01:07]}  Kf6 {[%clk 0:01:13]} 133. Ka1 {[%clk 0:01:08]}  Kf5 {[%clk 0:01:14]} 134. Kb1 {[%clk 0:01:09]}  Ke6 {[%clk 0:01:15]} 135. Ka1 {[%clk 0:01:10]}  Ke5 {[%clk 0:01:15]} 136. Kb1 {[%clk 0:01:11]}  Kd6 {[%clk 0:01:16]} 137. Ka1 {[%clk 0:01:12]}  Kd5 {[%clk 0:01:17]} 138. Kb1 {[%clk 0:01:13]}  g3 {[%clk 0:01:18]} 139. Ka1 {[%clk 0:01:14]}  Kc6 {[%clk 0:01:19]} 140. Kb1 {[%clk 0:01:15]}  Kc5 {[%clk 0:01:20]} 141. Ka1 {[%clk 0:01:15]}  Kb6 {[%clk 0:01:21]} 142. Kb1 {[%clk 0:01:16]}  Kb5 {[%clk 0:01:22]} 143. Ka1 {[%clk 0:01:17]}  Ka5 {[%clk 0:01:23]} 144. Kb1 {[%clk 0:01:18]}  Ka6 {[%clk 0:01:24]} 145. Ka1 {[%clk 0:01:19]}  Ka7 {[%clk 0:01:24]} 146. Kb1 {[%clk 0:01:20]}  Ka8 {[%clk 0:01:25]} 147. Ka1 {[%clk 0:01:21]}  Kb7 {[%clk 0:01:26]} 148. Kb1 {[%clk 0:01:22]}  Kb8 {[%clk 0:01:27]} 149. Ka1 {[%clk 0:01:22]}  Kc7 {[%clk 0:01:28]} 150. Kb1 {[%clk 0:01:23]}  Kc8 {[%clk 0:01:29]} 151. Ka1 {[%clk 0:01:24]}  Kd7 {[%clk 0:01:30]} 152. Kb1 {[%clk 0:01:25]}  Kd8 {[%clk 0:01:31]} 153. Ka1 {[%clk 0:01:26]}  Ke7 {[%clk 0:01:32]} 154. Kb1 {[%clk 0:01:27]}  Ke8 {[%clk 0:01:33]} 155. Ka1 {[%clk 0:01:28]}  Kf7 {[%clk 0:01:33]} 156. Kb1 {[%clk 0:01:29]}  Kf8 {[%clk 0:01:34]} 157. Ka1 {[%clk 0:01:30]}  Kg7 {[%clk 0:01:35]} 158. Kb1 {[%clk 0:01:31]}  Kg8 {[%clk 0:01:36]} 159. Ka1 {[%clk 0:01:31]}  Kh7 {[%clk 0:01:37]} 160. Kb1 {[%clk 0:01:32]}  Kh8 {[%clk 0:01:38]} 161. Ka1 {[%clk 0:01:33]}  Kg7 {[%clk 0:01:39]} 162. Kb1 {[%clk 0:01:34]}  Kh6 {[%clk 0:01:40]} 163. Ka1 {[%clk 0:01:35]}  g2 {[%clk 0:01:41]} 164. Kb1 {[%clk 0:01:36]}  Kh5 {[%clk 0:01:42]} 165. Ka1 {[%clk 0:01:37]}  Kg6 {[%clk 0:01:42]} 166. Kb1 {[%clk 0:01:38]}  Kg5 {[%clk 0:01:43]} 167. Ka1 {[%clk 0:01:39]}  Kf6 {[%clk 0:01:44]} 168. Kb1 {[%clk 0:01:40]}  Kf5 {[%clk 0:01:45]} 169. Ka1 {[%clk 0:01:40]}  Ke6 {[%clk 0:01:46]} 170. Kb1 {[%clk 0:01:41]}  Ke5 {[%clk 0:01:47]} 171. Ka1 {[%clk 0:01:42]}  Kd6 {[%clk 0:01:48]} 172. Kb1 {[%clk 0:01:43]}  Kd5 {[%clk 0:01:49]} 173. Ka1 {[%clk 0:01:44]}  Kc6 {[%clk 0:01:50]} 174. Kb1 {[%clk 0:01:45]}  Kc5 {[%clk 0:01:51]} 175. Ka1 {[%clk 0:01:46]}  Kb6 {[%clk 0:01:51]} 176. Kb1 {[%clk 0:01:47]}  Kb5 {[%clk 0:01:52]} 177. Ka1 {[%clk 0:01:48]}  Ka6 {[%clk 0:01:53]} 178. Kb1 {[%clk 0:01:49]}  Ka5 {[%clk 0:01:54]} 179. Ka1 {[%clk 0:01:49]}  Ka4 {[%clk 0:01:55]} 180. Kb1 {[%clk 0:01:50]}  Kb4 {[%clk 0:01:56]} 181. Ka1 {[%clk 0:01:51]}  Kc4 {[%clk 0:01:57]} 182. Kb1 {[%clk 0:01:52]}  Kd4 {[%clk 0:01:58]} 183. Ka1 {[%clk 0:01:53]}  Ke4 {[%clk 0:01:59]} 184. Kb1 {[%clk 0:01:54]}  Kf4 {[%clk 0:02:00]} 185. Ka1 {[%clk 0:01:55]}  Kg4 {[%clk 0:02:00]} 186. Kb1 {[%clk 0:01:56]}  g1=Q# {[%clk 0:02:01]} 0-1


[Site "https://www.chess.com"]

[Event "Titled Tuesday Blitz January 10 Early 2023"]
[White "Ozen, Bahadir"]
[Black "Sokolovsky, Yahli"]
[WhiteFideId "6337058"]
[BlackFideId "2820242"]
[WhiteElo "2369"]
[BlackElo "2461"]
[Result "1/2-1/2"]
[Round "10"]
[TimeControl "180+2"]
[Date "2023.01.10"]
[WhiteClock "0:00:02"]
[BlackClock "0:00:02"]

1. g3 {[%clk 0:03:00]}  g6 {[%clk 0:02:51]} 2. Bg2 {[%clk 0:03:00]}  Bg7 {[%clk 0:02:51]} 3. d4 {[%clk 0:03:00]}  d5 {[%clk 0:02:51]} 4. Nf3 {[%clk 0:02:57]}  f5 {[%clk 0:02:47]} 5. O-O {[%clk 0:02:50]}  e6 {[%clk 0:02:47]} 6. b3 {[%clk 0:02:42]}  Nf6 {[%clk 0:02:47]} 7. Ba3 {[%clk 0:02:41]}  Bf8 {[%clk 0:02:37]} 8. Bxf8 {[%clk 0:02:40]}  Kxf8 {[%clk 0:02:38]} 9. c4 {[%clk 0:02:33]}  c6 {[%clk 0:02:38]} 10. Nbd2 {[%clk 0:02:28]}  Kg7 {[%clk 0:02:38]} 11. Ne5 {[%clk 0:02:22]}  Nbd7 {[%clk 0:02:38]} 12. Ndf3 {[%clk 0:02:22]}  Nxe5 {[%clk 0:02:28]} 13. Nxe5 {[%clk 0:02:22]}  Nd7 {[%clk 0:02:28]} 14. Nd3 {[%clk 0:02:16]}  Qf6 {[%clk 0:02:25]} 15. e3 {[%clk 0:02:14]}  a5 {[%clk 0:02:25]} 16. Qc2 {[%clk 0:02:09]}  h5 {[%clk 0:02:17]} 17. f4 {[%clk 0:01:47]}  h4 {[%clk 0:02:15]} 18. Kf2 {[%clk 0:01:48]}  g5 {[%clk 0:01:57]} 19. Ne5 {[%clk 0:01:39]}  Nxe5 {[%clk 0:01:53]} 20. dxe5 {[%clk 0:01:39]}  Qe7 {[%clk 0:01:53]} 21. Qc3 {[%clk 0:01:35]}  g4 {[%clk 0:01:02]} 22. Rfc1 {[%clk 0:01:29]}  Bd7 {[%clk 0:00:53]} 23. cxd5 {[%clk 0:01:09]}  cxd5 {[%clk 0:00:53]} 24. Qc5 {[%clk 0:01:09]}  Qf7 {[%clk 0:00:33]} 25. a3 {[%clk 0:00:58]}  hxg3+ {[%clk 0:00:21]} 26. hxg3 {[%clk 0:00:57]}  Rh2 {[%clk 0:00:21]} 27. Rh1 {[%clk 0:00:53]}  Rxh1 {[%clk 0:00:16]} 28. Rxh1 {[%clk 0:00:49]}  Rc8 {[%clk 0:00:16]} 29. Qxa5 {[%clk 0:00:43]}  Rc2+ {[%clk 0:00:17]} 30. Kg1 {[%clk 0:00:43]}  Bc6 {[%clk 0:00:10]} 31. Qd8 {[%clk 0:00:16]}  Rxg2+ {[%clk 0:00:10]} 32. Kf1 {[%clk 0:00:17]}  Qf8 {[%clk 0:00:05]} 33. Rh7+ {[%clk 0:00:07]}  Kxh7 {[%clk 0:00:05]} 34. Qxf8 {[%clk 0:00:07]}  Rxg3 {[%clk 0:00:05]} 35. Qf7+ {[%clk 0:00:06]}  Kh8 {[%clk 0:00:06]} 36. Qxe6 {[%clk 0:00:04]}  Rxe3 {[%clk 0:00:03]} 37. Qf6+ {[%clk 0:00:04]}  Kg8 {[%clk 0:00:03]} 38. e6 {[%clk 0:00:04]}  d4 {[%clk 0:00:01]} 39. Qf7+ {[%clk 0:00:03]}  Kh8 {[%clk 0:00:02]} 40. e7 {[%clk 0:00:02]}  d3 {[%clk 0:00:02]} 41. Qf6+ {[%clk 0:00:02]}  Kg8 {[%clk 0:00:02]} 42. Qg6+ {[%clk 0:00:03]}  Kh8 {[%clk 0:00:03]} 43. Qf6+ {[%clk 0:00:03]}  Kg8 {[%clk 0:00:04]} 44. Qf8+ {[%clk 0:00:02]}  Kh7 {[%clk 0:00:04]} 45. Qf7+ {[%clk 0:00:02]}  Kh8 {[%clk 0:00:02]} 46. Qf6+ {[%clk 0:00:02]} 1/2-1/2


[Site "https://www.chess.com"]

[Event "Titled Tuesday Blitz January 10 Early 2023"]
[White "Crevatin, Leo"]
[Black "Shipov, Sergei"]
[WhiteFideId "1726307"]
[BlackFideId "4113624"]
[WhiteElo "2292"]
[BlackElo "2541"]
[Result "0-1"]
[Round "10"]
[TimeControl "180+2"]
[Date "2023.01.10"]
[WhiteClock "0:00:04"]
[BlackClock "0:00:36"]

1. d4 {[%clk 0:03:00]}  d5 {[%clk 0:02:59]} 2. c4 {[%clk 0:03:00]}  dxc4 {[%clk 0:02:59]} 3. Nf3 {[%clk 0:02:59]}  Nf6 {[%clk 0:02:57]} 4. e3 {[%clk 0:03:00]}  e6 {[%clk 0:02:57]} 5. Bxc4 {[%clk 0:03:00]}  c5 {[%clk 0:02:58]} 6. O-O {[%clk 0:03:00]}  Nc6 {[%clk 0:02:59]} 7. dxc5 {[%clk 0:02:52]}  Qxd1 {[%clk 0:02:58]} 8. Rxd1 {[%clk 0:02:52]}  Bxc5 {[%clk 0:02:59]} 9. b3 {[%clk 0:02:52]}  O-O {[%clk 0:02:56]} 10. Bb2 {[%clk 0:02:49]}  Be7 {[%clk 0:02:49]} 11. Nc3 {[%clk 0:02:43]}  a6 {[%clk 0:02:40]} 12. Be2 {[%clk 0:02:38]}  b5 {[%clk 0:02:33]} 13. Ng5 {[%clk 0:02:16]}  Bb7 {[%clk 0:02:28]} 14. Bf3 {[%clk 0:02:16]}  Rfd8 {[%clk 0:02:16]} 15. Nge4 {[%clk 0:02:13]}  Ne8 {[%clk 0:02:12]} 16. Ne2 {[%clk 0:02:05]}  f5 {[%clk 0:02:06]} 17. N4c3 {[%clk 0:01:59]}  Kf7 {[%clk 0:01:45]} 18. Kf1 {[%clk 0:01:57]}  Nf6 {[%clk 0:01:41]} 19. Rac1 {[%clk 0:01:56]}  Rac8 {[%clk 0:01:17]} 20. Rxd8 {[%clk 0:01:47]}  Nxd8 {[%clk 0:01:17]} 21. Bxb7 {[%clk 0:01:33]}  Nxb7 {[%clk 0:01:18]} 22. Nd4 {[%clk 0:01:33]}  Nd7 {[%clk 0:01:06]} 23. Ke2 {[%clk 0:01:31]}  Nb6 {[%clk 0:01:01]} 24. f3 {[%clk 0:01:28]}  Bf6 {[%clk 0:01:01]} 25. Rd1 {[%clk 0:01:00]}  g6 {[%clk 0:00:55]} 26. Nb1 {[%clk 0:00:56]}  e5 {[%clk 0:00:54]} 27. Nxb5 {[%clk 0:00:35]}  Rc2+ {[%clk 0:00:53]} 28. Kf1 {[%clk 0:00:34]}  axb5 {[%clk 0:00:51]} 29. Rd2 {[%clk 0:00:34]}  Rxd2 {[%clk 0:00:50]} 30. Nxd2 {[%clk 0:00:35]}  Nc5 {[%clk 0:00:48]} 31. Ke2 {[%clk 0:00:35]}  e4 {[%clk 0:00:45]} 32. Ba3 {[%clk 0:00:34]}  exf3+ {[%clk 0:00:43]} 33. gxf3 {[%clk 0:00:35]}  Na6 {[%clk 0:00:41]} 34. Bd6 {[%clk 0:00:34]}  Ke6 {[%clk 0:00:41]} 35. Bg3 {[%clk 0:00:33]}  Nb4 {[%clk 0:00:40]} 36. a3 {[%clk 0:00:32]}  Nc2 {[%clk 0:00:40]} 37. a4 {[%clk 0:00:32]}  bxa4 {[%clk 0:00:41]} 38. bxa4 {[%clk 0:00:33]}  Nxa4 {[%clk 0:00:41]} 39. Kd3 {[%clk 0:00:33]}  Nb4+ {[%clk 0:00:41]} 40. Kc4 {[%clk 0:00:33]}  Nd5 {[%clk 0:00:41]} 41. e4 {[%clk 0:00:32]}  fxe4 {[%clk 0:00:40]} 42. Nxe4 {[%clk 0:00:30]}  Be7 {[%clk 0:00:40]} 43. Bb8 {[%clk 0:00:25]}  Ne3+ {[%clk 0:00:39]} 44. Kd3 {[%clk 0:00:19]}  Nf5 {[%clk 0:00:39]} 45. Kc4 {[%clk 0:00:17]}  Nb6+ {[%clk 0:00:38]} 46. Kd3 {[%clk 0:00:11]}  Nd5 {[%clk 0:00:39]} 47. h3 {[%clk 0:00:09]}  Nh4 {[%clk 0:00:38]} 48. Kd4 {[%clk 0:00:09]}  Nxf3+ {[%clk 0:00:38]} 49. Kd3 {[%clk 0:00:08]}  Nh4 {[%clk 0:00:38]} 50. Kd4 {[%clk 0:00:08]}  Nf5+ {[%clk 0:00:38]} 51. Kd3 {[%clk 0:00:09]}  g5 {[%clk 0:00:38]} 52. Bh2 {[%clk 0:00:08]}  Nf4+ {[%clk 0:00:38]} 53. Bxf4 {[%clk 0:00:05]}  gxf4 {[%clk 0:00:38]} 54. Ke2 {[%clk 0:00:06]}  Ke5 {[%clk 0:00:38]} 55. Nf2 {[%clk 0:00:06]}  Nh4 {[%clk 0:00:36]} 56. Nd3+ {[%clk 0:00:05]}  Kf5 {[%clk 0:00:37]} 57. Nf2 {[%clk 0:00:05]}  Bc5 {[%clk 0:00:36]} 58. Ng4 {[%clk 0:00:05]}  f3+ {[%clk 0:00:35]} 59. Kf1 {[%clk 0:00:05]}  h5 {[%clk 0:00:35]} 60. Nh2 {[%clk 0:00:05]}  Kf4 {[%clk 0:00:36]} 61. Ke1 {[%clk 0:00:03]}  Ng2+ {[%clk 0:00:36]} 62. Kf1 {[%clk 0:00:03]}  Ne3+ {[%clk 0:00:36]} 63. Kf2 {[%clk 0:00:04]}  Ng4+ {[%clk 0:00:36]} 0-1


[Site "https://www.chess.com"]